[Event "European Online Club-ch-I 2021"]
[Site "Online"]
[Date "2021.03.27"]
[Round "5.8"]
[White "Terry, Renato"]
[Black "Bashirli, Nail"]
[Result "1/2-1/2"]
[ECO "E15"]
[WhiteElo "2504"]
[BlackElo "2382"]
[Annotator "ChessBase"]
[PlyCount "199"]
[EventDate "2021.03.27"]
[EventType "team-tourn"]
[EventCountry "NET"]
[SourceTitle "playchess.com"]
[Source "ChessBase"]
[SourceQuality "1"]
[TimeControl "900+5"]

1. Nf3 {[%emt 0:00:00]} Nf6 {[%emt 0:00:09]} 2. d4 {[%emt 0:00:03]} e6 {[%emt 0:00:02]} 3. c4 {[%emt 0:00:03]} b6 {[%emt 0:00:02]} 4. g3 {[%emt 0:00:02]} Ba6 {[%emt 0:00:04]} 5. Qa4 {[%emt 0:00:03]} Bb7 {[%emt 0:00:35]} 6. Bg2 {[%emt 0:00:02]} c5 {[%emt 0:00:01]} 7. dxc5 {[%emt 0:00:03]} bxc5 {[%emt 0:00:01]} 8. O-O {[%emt 0:00:04]} Be7 {[%emt 0:00:01]} 9. Nc3 {[%emt 0:00:03]} O-O {[%emt 0:00:02]} 10. Rd1 {[%emt 0:00:04]} Qb6 {[%emt 0:00:06]} 11. Bf4 {[%emt 0:00:04]} d6 {[%emt 0:00:05]} 12. Rd2 {[%emt 0:02:38]} h6 {[%emt 0:00:04]} 13. Qb5 {[%emt 0:01:11]} e5 {[%emt 0:01:38]} 14. Qxb6 {[%emt 0:02:22]} axb6 {[%emt 0:00:19]} 15. Be3 {[%emt 0:00:02]} Nc6 {[%emt 0:00:34]} 16. Nh4 {[%emt 0:00:20]} Rfd8 {[%emt 0:01:07]} 17. Nf5 {[%emt 0:00:25]} Bf8 {[%emt 0:00:16]} 18. Rad1 {[%emt 0:00:07]} Na5 {[%emt 0:00:04]} 19. b3 {[%emt 0:00:51]} Bxg2 {[%emt 0:01:03]} 20. Kxg2 {[%emt 0:00:04]} Nb7 {[%emt 0:00:01]} 21. f3 {[%emt 0:00:50]} Kh7 {[%emt 0:00:27]} 22. g4 {[%emt 0:00:27]} Rd7 {[%emt 0:00:15]} 23. Ng3 {[%emt 0:00:39]} Nd8 {[%emt 0:00:10]} 24. g5 {[%emt 0:00:25]} Ng8 {[%emt 0:01:18]} 25. Nge4 {[%emt 0:00:53]} hxg5 {[%emt 0:00:54]} 26. Nxg5+ {[%emt 0:01:00]} Kg6 {[%emt 0:00:03]} 27. Nge4 {[%emt 0:00:01]} Nb7 {[%emt 0:01:03]} 28. Nd5 {[%emt 0:00:51]} Ra6 {[%emt 0:00:09]} 29. f4 {[%emt 0:00:01]} f5 {[%emt 0:00:37]} 30. Nec3 {[%emt 0:00:02]} Nf6 {[%emt 0:00:06]} 31. Nxf6 {[%emt 0:01:07]} gxf6 {[%emt 0:00:02]} 32. Kf3 {[%emt 0:00:34]} Nd8 {[%emt 0:00:28]} 33. Rg1+ {[%emt 0:00:09]} Kf7 {[%emt 0:00:15]} 34. Bf2 {[%emt 0:00:28]} Bh6 {[%emt 0:00:57]} 35. e3 {[%emt 0:00:04]} Nc6 {[%emt 0:01:09]} 36. Rgd1 {[%emt 0:00:21]} Ke6 {[%emt 0:00:49]} 37. Nd5 {[%emt 0:00:24]} Bf8 {[%emt 0:00:23]} 38. Bh4 {[%emt 0:00:33]} Bg7 {[%emt 0:00:32]} 39. Bxf6 {[%emt 0:00:45]} Nd4+ {[%emt 0:00:58]} 40. exd4 {[%emt 0:00:05]} e4+ {[%emt 0:00:02]} 41. Ke3 {[%emt 0:00:04]} Bxf6 {[%emt 0:00:00]} 42. Nxf6 {[%emt 0:00:08]} Kxf6 {[%emt 0:00:02]} 43. dxc5 {[%emt 0:00:02]} bxc5 {[%emt 0:00:01]} 44. h4 {[%emt 0:00:09]} Ke6 {[%emt 0:00:03]} 45. Rg1 {[%emt 0:00:03]} Kf6 {[%emt 0:00:23]} 46. h5 {[%emt 0:00:04]} Rh7 {[%emt 0:00:10]} 47. Rg6+ {[%emt 0:00:02]} Kf7 {[%emt 0:00:15]} 48. Rg5 {[%emt 0:00:02]} Ke6 {[%emt 0:00:11]} 49. Rh2 {[%emt 0:00:13]} Ra8 {[%emt 0:00:45]} 50. Rg6+ {[%emt 0:00:03]} Ke7 {[%emt 0:00:16]} 51. h6 {[%emt 0:00:02]} Rah8 {[%emt 0:00:02]} 52. Rh5 {[%emt 0:00:02]} Rf7 {[%emt 0:00:03]} 53. Rgg5 {[%emt 0:00:12]} Ke6 {[%emt 0:00:02]} 54. Rg6+ {[%emt 0:00:02]} Ke7 {[%emt 0:00:02]} 55. Kd2 {[%emt 0:00:07]} Ra8 {[%emt 0:00:05]} 56. h7 {[%emt 0:00:06]} Rh8 {[%emt 0:00:02]} 57. Rgh6 {[%emt 0:00:05]} Rg7 {[%emt 0:00:09]} 58. Rxf5 {[%emt 0:00:07]} Rhxh7 {[%emt 0:00:01]} 59. Rxh7 {[%emt 0:00:02]} Rxh7 {[%emt 0:00:01]} 60. Ke3 {[%emt 0:00:07]} Rh2 {[%emt 0:00:04]} 61. Kxe4 {[%emt 0:00:04]} Rxa2 {[%emt 0:00:01]} 62. Rh5 {[%emt 0:00:03]} Rd2 {[%emt 0:00:06]} 63. Kf5 {[%emt 0:00:08]} d5 {[%emt 0:00:07]} 64. Rh7+ {[%emt 0:00:02]} Kd6 {[%emt 0:00:03]} 65. Rh8 {[%emt 0:00:07]} d4 {[%emt 0:00:04]} 66. Rd8+ {[%emt 0:00:03]} Kc7 {[%emt 0:00:05]} 67. Rd5 {[%emt 0:00:02]} Kc6 {[%emt 0:00:00]} 68. Kg6 {[%emt 0:00:07]} Rg2+ {[%emt 0:00:03]} 69. Kf7 {[%emt 0:00:05]} Rb2 {[%emt 0:00:14]} 70. f5 {[%emt 0:00:08]} Rxb3 {[%emt 0:00:01]} 71. f6 {[%emt 0:00:01]} Rf3 {[%emt 0:00:02]} 72. Ke7 {[%emt 0:00:09]} Re3+ {[%emt 0:00:10]} 73. Kf8 {[%emt 0:00:02]} Rc3 {[%emt 0:00:04]} 74. f7 {[%emt 0:00:05]} Rxc4 {[%emt 0:00:01]} 75. Ke7 {[%emt 0:00:11]} Kxd5 {[%emt 0:00:15]} 76. f8=Q {[%emt 0:00:03]} Rc3 {[%emt 0:00:03]} 77. Qf7+ {[%emt 0:00:05]} Ke4 {[%emt 0:00:01]} 78. Kd6 {[%emt 0:00:06]} Kd3 {[%emt 0:00:07]} 79. Qg6+ {[%emt 0:00:04]} Kd2 {[%emt 0:00:02]} 80. Qg2+ {[%emt 0:00:04]} Kc1 {[%emt 0:00:02]} 81. Qf1+ {[%emt 0:00:03]} Kc2 {[%emt 0:00:03]} 82. Qe2+ {[%emt 0:00:03]} Kc1 {[%emt 0:00:01]} 83. Qe1+ {[%emt 0:00:06]} Kb2 {[%emt 0:00:01]} 84. Qd2+ {[%emt 0:00:08]} Rc2 {[%emt 0:00:02]} 85. Qd3 {[%emt 0:00:05]} Rc3 {[%emt 0:00:04]} 86. Qd1 {[%emt 0:00:06]} d3 {[%emt 0:00:06]} 87. Qd2+ {[%emt 0:00:06]} Kb3 {[%emt 0:00:01]} 88. Qd1+ {[%emt 0:00:02]} Kb2 {[%emt 0:00:03]} 89. Qd2+ {[%emt 0:00:08]} Kb3 {[%emt 0:00:02]} 90. Qd1+ {[%emt 0:00:06]} Kb4 {[%emt 0:00:01]} 91. Qb1+ {[%emt 0:00:04]} Rb3 {[%emt 0:00:02]} 92. Qe1+ {[%emt 0:00:02]} Rc3 {[%emt 0:00:22]} 93. Kd5 {[%emt 0:00:05]} Kb3 {[%emt 0:00:01]} 94. Qb1+ {[%emt 0:00:02]} Ka3 {[%emt 0:00:01]} 95. Qa1+ {[%emt 0:00:02]} Kb3 {[%emt 0:00:01]} 96. Qd1+ {[%emt 0:00:10]} Kb2 {[%emt 0:00:02]} 97. Qd2+ {[%emt 0:00:04]} Kb3 {[%emt 0:00:01]} 98. Qd1+ {[%emt 0:00:08]} Kb2 {[%emt 0:00:01]} 99. Qd2+ {[%emt 0:00:04]} Kb3 {[%emt 0:00:01]} 100. Qd1+ {[%emt 0:00:07]} 1/2-1/2

[Event "European Online Club-ch-I 2021"]
[Site "Online"]
[Date "2021.03.27"]
[Round "5.9"]
[White "Batsiashvili, Nino"]
[Black "Moranda, Wojciech"]
[Result "0-1"]
[ECO "D34"]
[WhiteElo "2491"]
[BlackElo "2618"]
[Annotator "ChessBase"]
[PlyCount "100"]
[EventDate "2021.03.27"]
[EventType "team-tourn"]
[EventCountry "NET"]
[SourceTitle "playchess.com"]
[Source "ChessBase"]
[SourceQuality "1"]
[TimeControl "900+5"]

1. c4 {[%emt 0:00:00]} Nf6 {[%emt 0:00:22]} 2. Nc3 {[%emt 0:00:05]} c5 {[%emt 0:00:02]} 3. g3 {[%emt 0:00:10]} e6 {[%emt 0:00:09]} 4. Nf3 {[%emt 0:00:23]} d5 {[%emt 0:00:14]} 5. cxd5 {[%emt 0:00:03]} exd5 {[%emt 0:00:01]} 6. d4 {[%emt 0:00:02]} Nc6 {[%emt 0:00:02]} 7. Bg2 {[%emt 0:00:02]} Be7 {[%emt 0:00:01]} 8. O-O {[%emt 0:00:06]} O-O {[%emt 0:00:02]} 9. b3 {[%emt 0:00:07]} Re8 {[%emt 0:00:10]} 10. Bb2 {[%emt 0:00:03]} Bg4 {[%emt 0:00:02]} 11. dxc5 {[%emt 0:00:08]} Bxc5 {[%emt 0:00:02]} 12. Na4 {[%emt 0:00:10]} Bf8 {[%emt 0:00:16]} 13. Rc1 {[%emt 0:00:03]} Rc8 {[%emt 0:00:43]} 14. h3 {[%emt 0:00:06]} Bf5 {[%emt 0:00:50]} 15. Re1 {[%emt 0:00:14]} Ne4 {[%emt 0:01:16]} 16. Nd4 {[%emt 0:00:20]} Nxd4 {[%emt 0:02:07]} 17. Bxd4 {[%emt 0:00:08]} Bb4 {[%emt 0:01:03]} 18. Rf1 {[%emt 0:01:00]} b5 {[%emt 0:00:31]} 19. Nb2 {[%emt 0:01:35]} Nc3 {[%emt 0:00:03]} 20. Bxc3 {[%emt 0:00:02]} Bxc3 {[%emt 0:00:02]} 21. Nd3 {[%emt 0:00:07]} d4 {[%emt 0:00:08]} 22. a3 {[%emt 0:00:40]} Qe7 {[%emt 0:00:16]} 23. Nf4 {[%emt 0:00:11]} Qxa3 {[%emt 0:00:24]} 24. Nd5 {[%emt 0:01:05]} b4 {[%emt 0:02:03]} 25. g4 {[%emt 0:02:23]} Be6 {[%emt 0:00:48]} 26. e4 {[%emt 0:01:21]} Bxd5 {[%emt 0:00:18]} 27. exd5 {[%emt 0:00:05]} Qa6 {[%emt 0:00:01]} 28. Qf3 {[%emt 0:00:24]} d3 {[%emt 0:00:06]} 29. Rcd1 {[%emt 0:01:15]} d2 {[%emt 0:00:03]} 30. Qf5 {[%emt 0:00:06]} g6 {[%emt 0:00:20]} 31. Qd7 {[%emt 0:00:15]} Rcd8 {[%emt 0:00:39]} 32. Qc6 {[%emt 0:00:07]} Qd3 {[%emt 0:00:11]} 33. Qc7 {[%emt 0:00:30]} a6 {[%emt 0:00:14]} 34. Qb6 {[%emt 0:00:11]} Qb5 {[%emt 0:00:52]} 35. Qc7 {[%emt 0:01:11]} Rd7 {[%emt 0:00:12]} 36. Qf4 {[%emt 0:00:06]} Re1 {[%emt 0:00:15]} 37. Rxd2 {[%emt 0:00:48]} Bxd2 {[%emt 0:00:03]} 38. Qxd2 {[%emt 0:00:01]} Rxf1+ {[%emt 0:00:02]} 39. Bxf1 {[%emt 0:00:01]} Rxd5 {[%emt 0:00:13]} 40. Qe1 {[%emt 0:00:12]} Re5 {[%emt 0:00:45]} 41. Qa1 {[%emt 0:01:06]} Qa5 {[%emt 0:00:11]} 42. Qd4 {[%emt 0:00:02]} Re1 {[%emt 0:00:10]} 43. Kg2 {[%emt 0:00:31]} Qa1 {[%emt 0:00:07]} 44. Qc4 {[%emt 0:00:52]} a5 {[%emt 0:00:28]} 45. Bd3 {[%emt 0:00:11]} Qc3 {[%emt 0:00:16]} 46. Qb5 {[%emt 0:00:11]} Kg7 {[%emt 0:00:10]} 47. Bc4 {[%emt 0:00:03]} Qe5 {[%emt 0:00:02]} 48. Qd7 {[%emt 0:00:04]} Qe4+ {[%emt 0:00:14]} 49. Kg3 {[%emt 0:00:03]} Rg1+ {[%emt 0:00:07]} 50. Kh4 {[%emt 0:00:03]} Qf4 {[%emt 0:00:09]} 0-1

[Event "European Online Club-ch-I 2021"]
[Site "Online"]
[Date "2021.03.27"]
[Round "5.10"]
[White "Tomczak, Jacek"]
[Black "Bulmaga, Irina"]
[Result "0-1"]
[ECO "B87"]
[WhiteElo "2610"]
[BlackElo "2440"]
[Annotator "ChessBase"]
[PlyCount "138"]
[EventDate "2021.03.27"]
[EventType "team-tourn"]
[EventCountry "NET"]
[SourceTitle "playchess.com"]
[Source "ChessBase"]
[SourceQuality "1"]
[TimeControl "900+5"]

1. e4 {[%emt 0:00:00]} c5 {[%emt 0:00:03]} 2. Nf3 {[%emt 0:00:03]} d6 {[%emt 0:00:02]} 3. d4 {[%emt 0:00:01]} cxd4 {[%emt 0:00:00]} 4. Nxd4 {[%emt 0:00:02]} Nf6 {[%emt 0:00:02]} 5. Nc3 {[%emt 0:00:01]} a6 {[%emt 0:00:01]} 6. Bc4 {[%emt 0:00:02]} e6 {[%emt 0:00:03]} 7. Bb3 {[%emt 0:00:05]} b5 {[%emt 0:00:07]} 8. O-O {[%emt 0:00:04]} Be7 {[%emt 0:00:03]} 9. Qf3 {[%emt 0:00:06]} Bb7 {[%emt 0:00:04]} 10. Bxe6 {[%emt 0:00:20]} fxe6 {[%emt 0:00:53]} 11. Nxe6 {[%emt 0:00:04]} Qd7 {[%emt 0:00:38]} 12. Nd5 {[%emt 0:01:24]} Bd8 {[%emt 0:01:16]} 13. Qb3 {[%emt 0:02:25]} Nc6 {[%emt 0:00:43]} 14. Bf4 {[%emt 0:00:49]} Na5 {[%emt 0:01:09]} 15. Qh3 {[%emt 0:01:24]} Bc8 {[%emt 0:00:23]} 16. Nxd8 {[%emt 0:01:43]} Qxh3 {[%emt 0:00:35]} 17. gxh3 {[%emt 0:00:09]} Nxd5 {[%emt 0:00:18]} 18. exd5 {[%emt 0:00:04]} Kxd8 {[%emt 0:00:03]} 19. Bxd6 {[%emt 0:00:12]} Nc4 {[%emt 0:00:17]} 20. Bc5 {[%emt 0:00:18]} Bxh3 {[%emt 0:01:49]} 21. Rfe1 {[%emt 0:00:04]} Nxb2 {[%emt 0:01:23]} 22. Re3 {[%emt 0:00:32]} Bd7 {[%emt 0:00:42]} 23. Rg3 {[%emt 0:01:01]} Rg8 {[%emt 0:00:29]} 24. Re1 {[%emt 0:00:06]} Nc4 {[%emt 0:00:10]} 25. d6 {[%emt 0:01:10]} Rc8 {[%emt 0:01:08]} 26. Bd4 {[%emt 0:00:03]} Rc6 {[%emt 0:00:09]} 27. Bxg7 {[%emt 0:00:06]} Kc8 {[%emt 0:00:13]} 28. Re7 {[%emt 0:00:42]} Rxd6 {[%emt 0:00:07]} 29. Bc3 {[%emt 0:00:04]} Rxg3+ {[%emt 0:00:31]} 30. hxg3 {[%emt 0:00:23]} Bf5 {[%emt 0:00:19]} 31. f4 {[%emt 0:00:14]} Rd7 {[%emt 0:00:19]} 32. Re8+ {[%emt 0:00:03]} Kc7 {[%emt 0:00:05]} 33. Kf2 {[%emt 0:00:03]} a5 {[%emt 0:00:10]} 34. a3 {[%emt 0:00:02]} Bxc2 {[%emt 0:00:12]} 35. g4 {[%emt 0:00:07]} Rd3 {[%emt 0:00:05]} 36. Bg7 {[%emt 0:00:22]} Bd1 {[%emt 0:00:39]} 37. f5 {[%emt 0:00:27]} Bxg4 {[%emt 0:00:03]} 38. f6 {[%emt 0:00:02]} Rf3+ {[%emt 0:00:03]} 39. Kg2 {[%emt 0:00:11]} Bh5 {[%emt 0:00:48]} 40. Re7+ {[%emt 0:00:25]} Kc6 {[%emt 0:00:02]} 41. Re4 {[%emt 0:00:52]} Kd5 {[%emt 0:00:20]} 42. Rh4 {[%emt 0:00:11]} Ne3+ {[%emt 0:00:02]} 43. Kg1 {[%emt 0:00:07]} Bg6 {[%emt 0:00:48]} 44. Kh1 {[%emt 0:00:14]} Nc4 {[%emt 0:00:04]} 45. Kg2 {[%emt 0:00:05]} Rf5 {[%emt 0:00:04]} 46. Rh3 {[%emt 0:00:04]} Ke4 {[%emt 0:00:13]} 47. Rc3 {[%emt 0:00:21]} Ne3+ {[%emt 0:00:07]} 48. Kg1 {[%emt 0:00:01]} Ng4 {[%emt 0:00:33]} 49. Rc6 {[%emt 0:00:07]} Kd3 {[%emt 0:00:19]} 50. Ra6 {[%emt 0:00:18]} a4 {[%emt 0:00:09]} 51. Rc6 {[%emt 0:00:04]} Ne3 {[%emt 0:00:07]} 52. Re6 {[%emt 0:00:12]} Nc4 {[%emt 0:00:03]} 53. Bf8 {[%emt 0:00:04]} Kc2 {[%emt 0:00:16]} 54. Be7 {[%emt 0:00:07]} Rf3 {[%emt 0:00:08]} 55. Kg2 {[%emt 0:00:05]} Rd3 {[%emt 0:00:02]} 56. Rc6 {[%emt 0:00:10]} Kb3 {[%emt 0:00:02]} 57. Rc5 {[%emt 0:00:06]} Nxa3 {[%emt 0:00:03]} 58. Rg5 {[%emt 0:00:02]} Bf7 {[%emt 0:00:07]} 59. Rg7 {[%emt 0:00:01]} Bd5+ {[%emt 0:00:02]} 60. Kf2 {[%emt 0:00:01]} Rf3+ {[%emt 0:00:02]} 61. Ke2 {[%emt 0:00:01]} Nc2 {[%emt 0:00:07]} 62. Rg5 {[%emt 0:00:06]} Nd4+ {[%emt 0:00:02]} 63. Ke1 {[%emt 0:00:01]} Bc4 {[%emt 0:00:02]} 64. Rg4 {[%emt 0:00:08]} Kc3 {[%emt 0:00:04]} 65. Rg1 {[%emt 0:00:09]} b4 {[%emt 0:00:07]} 66. Kd1 {[%emt 0:00:10]} b3 {[%emt 0:00:04]} 67. Bc5 {[%emt 0:00:13]} Rxf6 {[%emt 0:00:13]} 68. Rg3+ {[%emt 0:00:02]} Bd3 {[%emt 0:00:03]} 69. Rg4 {[%emt 0:00:01]} Rf1# {[%emt 0:00:03]} 0-1

[Event "European Online Club-ch-I 2021"]
[Site "Online"]
[Date "2021.03.27"]
[Round "5.11"]
[White "Atalik, Ekaterina"]
[Black "Klekowski, Maciej"]
[Result "1/2-1/2"]
[ECO "A80"]
[WhiteElo "2430"]
[BlackElo "2510"]
[Annotator "ChessBase"]
[PlyCount "76"]
[EventDate "2021.03.27"]
[EventType "team-tourn"]
[EventCountry "NET"]
[SourceTitle "playchess.com"]
[Source "ChessBase"]
[SourceQuality "1"]
[TimeControl "900+5"]

1. d4 {[%emt 0:00:00]} f5 {[%emt 0:00:04]} 2. Bg5 {[%emt 0:00:05]} g6 {[%emt 0:00:01]} 3. h4 {[%emt 0:00:18]} Bg7 {[%emt 0:00:03]} 4. Nf3 {[%emt 0:00:36]} d6 {[%emt 0:01:24]} 5. e3 {[%emt 0:00:38]} Nc6 {[%emt 0:00:11]} 6. Bc4 {[%emt 0:00:37]} h6 {[%emt 0:00:15]} 7. Bf4 {[%emt 0:00:08]} Nf6 {[%emt 0:00:18]} 8. Nc3 {[%emt 0:00:06]} a6 {[%emt 0:01:01]} 9. a3 {[%emt 0:00:26]} Ng4 {[%emt 0:00:23]} 10. d5 {[%emt 0:01:12]} Nce5 {[%emt 0:00:10]} 11. Bb3 {[%emt 0:00:35]} O-O {[%emt 0:02:14]} 12. Nd4 {[%emt 0:00:44]} Kh7 {[%emt 0:00:40]} 13. Qe2 {[%emt 0:00:22]} Bd7 {[%emt 0:00:25]} 14. O-O-O {[%emt 0:00:16]} c5 {[%emt 0:03:15]} 15. dxc6 {[%emt 0:00:09]} Nxc6 {[%emt 0:00:03]} 16. f3 {[%emt 0:01:47]} Nge5 {[%emt 0:01:17]} 17. h5 {[%emt 0:01:22]} g5 {[%emt 0:00:12]} 18. Bxe5 {[%emt 0:00:04]} Bxe5 {[%emt 0:00:37]} 19. g4 {[%emt 0:01:25]} f4 {[%emt 0:01:33]} 20. Qd3+ {[%emt 0:00:49]} Kh8 {[%emt 0:00:02]} 21. Nd5 {[%emt 0:01:30]} fxe3 {[%emt 0:01:07]} 22. Nxc6 {[%emt 0:02:02]} bxc6 {[%emt 0:00:03]} 23. Nxe3 {[%emt 0:00:03]} Rb8 {[%emt 0:00:28]} 24. Nc4 {[%emt 0:00:36]} Bg7 {[%emt 0:00:11]} 25. Rhe1 {[%emt 0:00:02]} c5 {[%emt 0:00:36]} 26. Qe4 {[%emt 0:00:14]} Bf6 {[%emt 0:00:23]} 27. Ne3 {[%emt 0:00:07]} c4 {[%emt 0:00:09]} 28. Nxc4 {[%emt 0:00:04]} Qc7 {[%emt 0:00:10]} 29. Qg6 {[%emt 0:00:06]} Rxb3 {[%emt 0:00:01]} 30. Qxh6+ {[%emt 0:00:12]} Kg8 {[%emt 0:00:02]} 31. Qg6+ {[%emt 0:00:02]} Kh8 {[%emt 0:00:01]} 32. Qh6+ {[%emt 0:00:32]} Kg8 {[%emt 0:00:02]} 33. Qg6+ {[%emt 0:00:02]} Kh8 {[%emt 0:00:02]} 34. cxb3 {[%emt 0:00:10]} Rb8 {[%emt 0:00:05]} 35. Qh6+ {[%emt 0:00:17]} Kg8 {[%emt 0:00:02]} 36. Qg6+ {[%emt 0:00:01]} Kh8 {[%emt 0:00:04]} 37. Qh6+ {[%emt 0:00:04]} Kg8 {[%emt 0:00:01]} 38. Qg6+ {[%emt 0:00:02]} Kh8 {[%emt 0:00:02]} 1/2-1/2

[Event "European Online Club-ch-I 2021"]
[Site "Online"]
[Date "2021.03.27"]
[Round "5.12"]
[White "Teclaf, Pawel"]
[Black "Daulyte-Cornette, Deimante"]
[Result "1-0"]
[ECO "A49"]
[WhiteElo "2507"]
[BlackElo "2387"]
[Annotator "ChessBase"]
[PlyCount "79"]
[EventDate "2021.03.27"]
[EventType "team-tourn"]
[EventCountry "NET"]
[SourceTitle "playchess.com"]
[Source "ChessBase"]
[SourceQuality "1"]
[TimeControl "900+5"]

1. Nf3 {[%emt 0:00:00]} Nf6 {[%emt 0:00:10]} 2. b3 {[%emt 0:00:06]} g6 {[%emt 0:00:05]} 3. Bb2 {[%emt 0:00:02]} Bg7 {[%emt 0:00:02]} 4. g3 {[%emt 0:00:01]} d6 {[%emt 0:00:32]} 5. d4 {[%emt 0:00:04]} c5 {[%emt 0:00:14]} 6. Bg2 {[%emt 0:01:23]} Ne4 {[%emt 0:02:00]} 7. O-O {[%emt 0:02:31]} Nc6 {[%emt 0:00:26]} 8. Nbd2 {[%emt 0:00:44]} Nxd2 {[%emt 0:00:46]} 9. Qxd2 {[%emt 0:00:04]} Bg4 {[%emt 0:00:25]} 10. e3 {[%emt 0:00:34]} O-O {[%emt 0:00:24]} 11. c4 {[%emt 0:00:08]} Qb6 {[%emt 0:01:06]} 12. d5 {[%emt 0:01:51]} Bxb2 {[%emt 0:00:59]} 13. Qxb2 {[%emt 0:00:04]} Bxf3 {[%emt 0:00:04]} 14. Bxf3 {[%emt 0:00:04]} Ne5 {[%emt 0:00:09]} 15. Be2 {[%emt 0:00:04]} f5 {[%emt 0:00:11]} 16. f4 {[%emt 0:00:17]} Nd7 {[%emt 0:00:03]} 17. e4 {[%emt 0:00:02]} fxe4 {[%emt 0:03:21]} 18. Bg4 {[%emt 0:00:04]} Rf5 {[%emt 0:00:02]} 19. Qg2 {[%emt 0:01:19]} Nf6 {[%emt 0:02:56]} 20. Bh3 {[%emt 0:00:12]} h5 {[%emt 0:00:06]} 21. Bxf5 {[%emt 0:00:03]} gxf5 {[%emt 0:00:01]} 22. Qh3 {[%emt 0:00:01]} Qb4 {[%emt 0:00:58]} 23. Qxf5 {[%emt 0:02:50]} Qd2 {[%emt 0:00:13]} 24. Rae1 {[%emt 0:00:24]} Qxa2 {[%emt 0:00:32]} 25. Rxe4 {[%emt 0:00:49]} Nxe4 {[%emt 0:00:03]} 26. Qxe4 {[%emt 0:00:39]} Qxb3 {[%emt 0:00:14]} 27. Qxe7 {[%emt 0:00:06]} Qxc4 {[%emt 0:00:09]} 28. Qg5+ {[%emt 0:00:04]} Kf8 {[%emt 0:00:07]} 29. Qh6+ {[%emt 0:00:02]} Kg8 {[%emt 0:00:09]} 30. Qg6+ {[%emt 0:00:03]} Kh8 {[%emt 0:00:14]} 31. Qxh5+ {[%emt 0:00:02]} Kg7 {[%emt 0:00:01]} 32. Qg5+ {[%emt 0:00:03]} Kf7 {[%emt 0:00:07]} 33. Re1 {[%emt 0:00:59]} Qd4+ {[%emt 0:00:03]} 34. Kh1 {[%emt 0:00:03]} Qf6 {[%emt 0:00:04]} 35. Qh5+ {[%emt 0:00:03]} Kg7 {[%emt 0:00:05]} 36. Re6 {[%emt 0:00:02]} Qa1+ {[%emt 0:00:10]} 37. Kg2 {[%emt 0:00:04]} Qb2+ {[%emt 0:00:06]} 38. Kh3 {[%emt 0:00:04]} Rh8 {[%emt 0:00:10]} 39. Re7+ {[%emt 0:00:02]} Kf8 {[%emt 0:00:26]} 40. Re8+ {[%emt 0:00:04]} 1-0

[Event "European Online Club-ch-I 2021"]
[Site "Online"]
[Date "2021.03.27"]
[Round "5.13"]
[White "Arnaudov, G. Petar"]
[Black "Stephan, Victor"]
[Result "1-0"]
[ECO "D02"]
[WhiteElo "2471"]
[BlackElo "2430"]
[Annotator "ChessBase"]
[PlyCount "57"]
[EventDate "2021.03.27"]
[EventType "team-tourn"]
[EventCountry "NET"]
[SourceTitle "playchess.com"]
[Source "ChessBase"]
[SourceQuality "1"]
[TimeControl "900+5"]

1. d4 {[%emt 0:00:00]} Nf6 {[%emt 0:00:04]} 2. Nf3 {[%emt 0:00:09]} e6 {[%emt 0:00:03]} 3. g3 {[%emt 0:00:02]} c5 {[%emt 0:00:02]} 4. Bg2 {[%emt 0:00:04]} cxd4 {[%emt 0:00:02]} 5. Nxd4 {[%emt 0:00:01]} d5 {[%emt 0:00:02]} 6. O-O {[%emt 0:00:05]} e5 {[%emt 0:00:02]} 7. Nb3 {[%emt 0:00:02]} Be6 {[%emt 0:00:12]} 8. Nc3 {[%emt 0:00:09]} Be7 {[%emt 0:00:29]} 9. Bg5 {[%emt 0:00:10]} Nbd7 {[%emt 0:00:05]} 10. f4 {[%emt 0:00:02]} exf4 {[%emt 0:00:37]} 11. gxf4 {[%emt 0:00:02]} g6 {[%emt 0:01:18]} 12. Kh1 {[%emt 0:00:20]} O-O {[%emt 0:01:05]} 13. Nd4 {[%emt 0:00:38]} Bg4 {[%emt 0:00:19]} 14. Qd3 {[%emt 0:00:18]} Nc5 {[%emt 0:00:34]} 15. Qg3 {[%emt 0:00:07]} Qd7 {[%emt 0:00:15]} 16. Qh4 {[%emt 0:00:10]} Kg7 {[%emt 0:00:57]} 17. f5 {[%emt 0:00:20]} h5 {[%emt 0:00:07]} 18. h3 {[%emt 0:00:18]} Bxf5 {[%emt 0:00:46]} 19. Rxf5 {[%emt 0:00:42]} gxf5 {[%emt 0:00:04]} 20. Rf1 {[%emt 0:00:03]} Kg6 {[%emt 0:01:45]} 21. Rxf5 {[%emt 0:00:45]} Qxf5 {[%emt 0:00:52]} 22. Nxf5 {[%emt 0:00:03]} Kxf5 {[%emt 0:00:02]} 23. Bxf6 {[%emt 0:00:47]} Bxf6 {[%emt 0:00:02]} 24. Qxh5+ {[%emt 0:00:01]} Bg5 {[%emt 0:00:08]} 25. h4 {[%emt 0:00:19]} Ne6 {[%emt 0:00:02]} 26. Bh3+ {[%emt 0:00:16]} Kf6 {[%emt 0:00:19]} 27. hxg5+ {[%emt 0:00:20]} Kg7 {[%emt 0:00:03]} 28. Qh6+ {[%emt 0:00:04]} Kg8 {[%emt 0:00:02]} 29. Nxd5 {[%emt 0:00:09]} 1-0